bitfinex/quotes_SOLUSD_20260226
["timestamp","ask_amount","ask_price","bid_price","bid_amount"]
[1772116251779,1.52752743,87.386,87.331,1.50729141]
[1772116252094,1.52752743,87.389,87.34,9.65047602]
[1772116252288,1.52752743,87.387,87.34,21.09994469]
[1772116252483,1.52752743,87.379,87.34,11.44946867]
[1772116252688,11.44318668,87.389,87.321,1.50729141]
[1772116252689,9.65047602,87.37,87.321,1.50729141]
[1772116253190,11.17800345,87.39,87.35,9.65047602]
[1772116253374,1.52752743,87.409,87.36,9.65047602]
[1772116253578,9.65047602,87.4,87.36,9.65047602]
[1772116253782,1.52752743,87.389,87.35,9.65047602]
[1772116253974,1.52752743,87.399,87.34,9.65047602]
[1772116254177,1.52752743,87.389,87.351,11.44806584]
[1772116254473,1.52752743,87.399,87.351,11.44806584]
[1772116254679,1.52752743,87.39,87.351,40.06823046]
[1772116254999,1.52752743,87.406,87.361,1.50729141]
[1772116255573,9.65047602,87.4,87.361,1.50729141]
[1772116255782,1.52752743,87.406,87.37,9.65047602]
[1772116255982,1.52752743,87.42,87.38,9.65047602]
[1772116256192,11.17800345,87.42,87.38,9.65047602]
[1772116256375,1.51737393,87.419,87.38,9.65047602]
[1772116256697,1.51737393,87.419,87.372,12.88117595]
[1772116256698,1.51737393,87.434,87.39,11.08633769]
[1772116257200,9.65047602,87.42,87.38,9.65047602]
[1772116257573,1.51737393,87.429,87.39,9.65047602]
[1772116257793,1.51737393,87.439,87.391,1.43586167]
[1772116258169,9.65047602,87.45,87.41,9.65047602]
[1772116258371,9.65047602,87.45,87.4,1.43586167]
[1772116258372,9.65047602,87.47,87.42,9.65047602]
[1772116258591,9.65047602,87.48,87.44,9.65047602]
[1772116258789,9.65047602,87.5,87.46,9.65047602]
[1772116259104,9.65047602,87.51,87.47,9.65047602]
[1772116259309,9.65047602,87.54,87.46,9.65047602]
[1772116259592,9.65047602,87.54,87.47,9.65047602]
[1772116259768,9.65047602,87.51,87.46,9.65047602]
[1772116259972,279.82411053,87.555,87.48,11.08633769]
[1772116260176,9.65047602,87.52,87.481,1.43586167]
[1772116260375,1.51737393,87.489,87.44,9.65047602]
[1772116260592,1.51737393,87.514,87.431,1.43586167]
[1772116260797,1.51737393,87.49,87.44,9.65047602]
[1772116260982,1.51737393,87.489,87.441,1.43586167]
[1772116261291,9.65047602,87.48,87.441,1.43586167]
[1772116261496,1.51737393,87.489,87.441,1.43586167]
[1772116261671,9.65047602,87.49,87.421,40.03614692]
[1772116261672,9.65047602,87.5,87.451,1.43586167]
[1772116261869,9.65047602,87.5,87.421,142.986239]
[1772116261870,11.42495592,87.528,87.481,1.43586167]
[1772116262094,9.65047602,87.52,87.48,9.65047602]
[1772116262299,1.51737393,87.539,87.492,1.43586167]
[1772116262476,57.10761357,87.554,87.435,45.74784821]
[1772116262477,1.51737393,87.529,87.48,9.65047602]
[1772116262681,1.51737393,87.519,87.48,9.65047602]
[1772116263099,1.51737393,87.519,87.48,11.08633769]
[1772116263303,1.51737393,87.529,87.481,1.43586167]
[1772116263599,1.51737393,87.529,87.48,9.65047602]
[1772116263600,1.51737393,87.574,87.521,1.43586167]
[1772116263900,1.51737393,87.569,87.52,9.65047602]
[1772116264100,1.51737393,87.589,87.55,9.65047602]
[1772116264305,9.65047602,87.6,87.56,9.65047602]
[1772116264601,9.65047602,87.6,87.551,39.97669929]
[1772116264602,45.63151508,87.659,87.551,39.97669929]
[1772116264603,1.51737393,87.634,87.59,9.65047602]
[1772116264798,1.51737393,87.619,87.58,9.65047602]
[1772116264985,1.51737393,87.632,87.59,9.65047602]
[1772116265189,1.51737393,87.642,87.6,11.08633769]
[1772116265397,1.51737393,87.649,87.61,9.65047602]
[1772116265581,11.40745134,87.662,87.63,9.65047602]
[1772116265785,11.40745134,87.662,87.62,9.65047602]
[1772116265998,11.40745134,87.662,87.551,279.83689503]
[1772116265999,9.65047602,87.64,87.6,9.65047602]
[1772116266206,1.51737393,87.619,87.58,9.65047602]
[1772116266417,39.94612979,87.618,87.571,1.43586167]
[1772116266722,39.94612979,87.618,87.57,9.65047602]
[1772116266723,1.51737393,87.609,87.57,9.65047602]
[1772116266880,9.65047602,87.63,87.591,1.43586167]
[1772116267087,1.51737393,87.644,87.59,9.65047602]
[1772116267088,1.51737393,87.629,87.59,9.65047602]
[1772116267482,176.82356429,87.658,87.57,9.65047602]
[1772116267483,1.51737393,87.609,87.57,9.65047602]
[1772116267718,1.51737393,87.609,87.58,9.65047602]
[1772116267896,1.51737393,87.657,87.601,1.43586167]
[1772116268195,1.51737393,87.639,87.6,9.65047602]
[1772116268524,1.51737393,87.639,87.548,45.68886292]
[1772116268525,1.51737393,87.619,87.58,9.65047602]
[1772116268821,9.65047602,87.64,87.6,9.65047602]
[1772116268985,1.51737393,87.649,87.61,9.65047602]
[1772116269187,1.51737393,87.649,87.6,9.65047602]
[1772116269387,85.54612646,87.672,87.62,16.57037153]
[1772116269388,1.51737393,87.663,87.62,16.57037153]
[1772116269610,45.61105472,87.699,87.573,188.41423725]
[1772116269611,11.40562981,87.676,87.64,16.57037153]
[1772116269814,16.57037153,87.67,87.631,1.43586167]
[1772116270106,11.40562981,87.676,87.64,16.57037153]
[1772116270316,11.40562981,87.676,87.63,16.57037153]
[1772116270317,1.51737393,87.669,87.63,16.57037153]
[1772116270793,1.51737393,87.669,87.585,45.66974496]
[1772116270794,1.51737393,87.675,87.64,16.57037153]
[1772116271113,0.2,87.71,87.661,1.43586167]
[1772116271280,0.2,87.71,87.69,16.57037153]
[1772116271608,11.39824914,87.733,87.7,16.57037153]
[1772116271806,1.51737393,87.729,87.69,16.57037153]
[1772116272008,16.57037153,87.71,87.67,16.57037153]
[1772116272311,11.40133851,87.709,87.67,16.57037153]
[1772116272529,11.40133851,87.709,87.644,28.52436592]
[1772116272530,1.51737393,87.699,87.655,11.40831101]
[1772116272688,1.51737393,87.699,87.66,16.57037153]
[1772116273011,1.51737393,87.689,87.641,1.43586167]
[1772116273210,1.51737393,87.689,87.64,16.57037153]
[1772116273211,16.57037153,87.7,87.66,18.0062332]
[1772116273503,39.9046848,87.709,87.67,16.57037153]
[1772116273504,11.40133851,87.709,87.67,16.57037153]
[1772116273691,1.51737393,87.733,87.69,16.57037153]
[1772116274003,1.51737393,87.729,87.69,16.57037153]
[1772116274608,11.39873929,87.729,87.68,18.0062332]
[1772116274808,1.51737393,87.733,87.691,1.43586167]
[1772116275101,18.08774546,87.71,87.666,11.40693085]
[1772116275303,16.57037153,87.7,87.666,11.40693085]
[1772116275487,11.39864178,87.73,87.666,11.40693085]
[1772116275488,16.57037153,87.72,87.671,1.43586167]
[1772116275804,16.57037153,87.72,87.67,16.57037153]
[1772116275805,1.51737393,87.719,87.68,16.57037153]
[1772116276008,1.51737393,87.749,87.71,16.57037153]
[1772116276194,1.51737393,87.764,87.73,16.57037153]
[1772116276397,1.51737393,87.791,87.75,16.57037153]
[1772116276612,1.51737393,87.789,87.76,16.57037153]
[1772116276900,16.57037153,87.8,87.744,1.43586167]
[1772116277101,16.57037153,87.79,87.75,16.57037153]
[1772116277295,39.86252988,87.802,87.761,1.43586167]
[1772116277497,11.38852856,87.808,87.771,1.43586167]
[1772116277710,18.08774546,87.81,87.77,16.57037153]
[1772116277882,1.51737393,87.809,87.77,16.57037153]
[1772116278394,16.57037153,87.79,87.75,16.57037153]
[1772116278699,16.57037153,87.77,87.731,1.43586167]
[1772116278899,16.57037153,87.76,87.717,1.43586167]
[1772116279114,1.51737393,87.766,87.721,1.43586167]
[1772116279316,16.57037153,87.74,87.7,16.57037153]
[1772116279705,16.57037153,87.77,87.731,1.43586167]
[1772116280015,16.57037153,87.75,87.71,16.57037153]
[1772116280226,16.57037153,87.76,87.72,16.57037153]
[1772116280517,16.57037153,87.74,87.696,12.83889031]
[1772116280711,16.57037153,87.74,87.7,16.57037153]
[1772116280914,1.51737393,87.748,87.7,16.57037153]
[1772116281115,16.57037153,87.74,87.7,16.57037153]
[1772116281309,11.39614126,87.749,87.71,16.53482837]
[1772116281508,11.39614126,87.749,87.72,16.53482837]
[1772116281718,18.0522023,87.75,87.71,16.53482837]
[1772116281908,29.44822358,87.75,87.71,16.53482837]
[1772116282105,11.3952664,87.756,87.72,16.53482837]
[1772116282303,1.51737393,87.749,87.695,41.34689308]
[1772116282615,11.39627114,87.748,87.696,1.43586167]
[1772116282816,1.51737393,87.763,87.696,1.43586167]
[1772116283015,1.51737393,87.763,87.72,16.53482837]
[1772116283199,1.51737393,87.763,87.697,0.14216157]
[1772116283200,11.38895197,87.805,87.751,1.43586167]
[1772116283401,1.51737393,87.818,87.78,16.53482837]
[1772116283800,1.51737393,87.809,87.77,16.53482837]
[1772116284008,1.51737393,87.809,87.671,1.14062802]
[1772116284009,1.51737393,87.789,87.75,16.53482837]
[1772116284207,16.53482837,87.8,87.76,16.53482837]
[1772116284404,16.53482837,87.81,87.761,1.43586167]
[1772116284724,45.52342282,87.867,87.721,45.5988017]
[1772116284725,11.38083694,87.867,87.801,1.43586167]
[1772116284923,22.63188993,87.874,87.814,1.43586167]
[1772116285126,22.63188993,87.874,87.84,16.53482837]
[1772116285318,1.51737393,87.869,87.781,1.72018481]
[1772116285523,1.51737393,87.849,87.81,16.53482837]
[1772116285820,1.51737393,87.839,87.8,16.53482837]
[1772116286129,16.53482837,87.86,87.82,16.53482837]
[1772116286327,16.53482837,87.84,87.8,16.53482837]
[1772116286620,11.38446475,87.839,87.8,16.53482837]
[1772116286828,41.18439868,87.839,87.794,1.40763873]
[1772116287121,41.18439868,87.839,87.728,1.13988692]
[1772116287122,27.91527675,87.87,87.83,16.53482837]
[1772116287324,22.63188993,87.874,87.831,1.40763873]
[1772116287518,34.0119321,87.874,87.84,16.53482837]
[1772116287719,16.53482837,87.87,87.83,16.53482837]
[1772116287925,16.53482837,87.87,87.795,85.42627711]
[1772116287926,22.63188993,87.874,87.85,16.53482837]
[1772116288130,22.63188993,87.874,87.831,1.40763873]
[1772116288131,22.63188993,87.874,87.84,16.53482837]
[1772116288329,16.53482837,87.85,87.81,16.53482837]
[1772116288627,1.33877204,87.869,87.801,1.40763873]
[1772116288809,16.53482837,87.87,87.803,1.40763873]
[1772116289008,11.3766937,87.899,87.86,16.53482837]
[1772116289205,11.3766937,87.899,87.8,222.09566868]
[1772116289206,1.33877204,87.889,87.85,16.53482837]
[1772116289402,11.3766937,87.899,87.83,16.53482837]
[1772116289403,1.33877204,87.869,87.83,16.53482837]
[1772116289623,16.53482837,87.86,87.824,1.40763873]
[1772116289818,1.33877204,87.869,87.83,16.53482837]
[1772116290020,16.53482837,87.85,87.81,17.9424671]
[1772116290250,17.87360041,87.83,87.79,16.53482837]
[1772116290532,11.38628719,87.825,87.79,16.53482837]
[1772116290709,16.53482837,87.82,87.782,1.40763873]
[1772116290912,1.33877204,87.819,87.77,16.53482837]
[1772116291116,16.53482837,87.81,87.773,1.40763873]
[1772116291332,16.53482837,87.8,87.76,16.53482837]
[1772116291510,16.53482837,87.81,87.771,1.40763873]
[1772116291714,16.53482837,87.81,87.712,45.60337908]
[1772116291715,16.53482837,87.8,87.76,16.53482837]
[1772116291915,1.33877204,87.819,87.78,16.53482837]
[1772116292214,16.53482837,87.79,87.756,1.40763873]
[1772116292528,16.53482837,87.84,87.781,1.40763873]
[1772116292738,16.53482837,87.83,87.79,17.9424671]
[1772116293235,130.87813536,87.868,87.79,17.9424671]
[1772116293236,16.53482837,87.82,87.79,1.40763873]
[1772116293430,16.53482837,87.81,87.775,1.40763873]
[1772116293732,16.53482837,87.82,87.78,16.53482837]
[1772116293929,16.53482837,87.83,87.79,16.53482837]
[1772116294120,39.83247598,87.868,87.801,1.40763873]
[1772116294327,16.53482837,87.88,87.84,16.53482837]
[1772116294529,16.53482837,87.9,87.86,16.53482837]
[1772116294732,16.53482837,87.88,87.841,11.38420555]
[1772116294931,5.36086188,87.907,87.85,16.53482837]
[1772116295119,16.53482837,87.89,87.85,16.53482837]
[1772116295314,16.53482837,87.9,87.861,1.40763873]
[1772116295614,1.33877204,87.951,87.891,1.40763873]
[1772116295811,16.53482837,87.95,87.911,1.40763873]
[1772116296009,16.53482837,87.94,87.9,17.9424671]
[1772116296224,17.87360041,87.91,87.87,16.53482837]
[1772116296529,16.53482837,87.9,87.861,1.40763873]
[1772116296738,16.53482837,87.88,87.843,1.40763873]
[1772116296930,16.53482837,87.87,87.83,16.53482837]
[1772116297232,11.37590731,87.906,87.81,16.53482837]
[1772116297233,16.53482837,87.85,87.81,16.53482837]
[1772116297411,16.53482837,87.83,87.79,16.53482837]
[1772116297610,1.33877204,87.828,87.77,16.53482837]
[1772116297814,16.53482837,87.89,87.74,16.53482837]
[1772116297815,16.53482837,87.78,87.74,16.53482837]
[1772116298031,16.53482837,87.78,87.723,39.89831629]
[1772116298032,16.53482837,87.77,87.73,16.53482837]
[1772116298331,5.36086188,87.813,87.73,16.53482837]
[1772116298332,16.53482837,87.78,87.73,16.53482837]
[1772116298547,1.31099463,87.844,87.77,16.53482837]
[1772116298834,16.53482837,87.8,87.76,16.53482837]
[1772116299032,16.53482837,87.79,87.75,16.53482837]
[1772116299232,1.31099463,87.809,87.744,1.2982965]
[1772116299233,16.53482837,87.78,87.744,1.2982965]
[1772116299417,1.31099463,87.809,87.751,1.2982965]
[1772116299621,16.53482837,87.8,87.76,16.53482837]
[1772116300213,16.53482837,87.8,87.761,1.2982965]
[1772116300438,16.53482837,87.79,87.761,1.2982965]
[1772116300628,16.53482837,87.8,87.761,1.2982965]
[1772116301016,16.53482837,87.78,87.742,1.2982965]
[1772116301215,1.31099463,87.795,87.742,1.2982965]
[1772116301216,16.53482837,87.77,87.742,1.2982965]
[1772116301939,16.53482837,87.75,87.712,1.2982965]
[1772116302239,1.31099463,87.801,87.741,1.2982965]
[1772116302536,16.53482837,87.78,87.741,1.2982965]
[1772116302737,1.31099463,87.858,87.771,1.2982965]
[1772116302922,56.90936613,87.859,87.771,1.2982965]
[1772116302923,16.53482837,87.82,87.78,16.53482837]
[1772116303124,28.45662641,87.853,87.751,39.88558534]
[1772116303125,17.845823,87.81,87.764,1.2982965]
[1772116303346,16.53482837,87.8,87.764,1.2982965]
[1772116303547,16.53482837,87.79,87.746,1.2982965]
[1772116303715,16.53482837,87.79,87.75,16.53482837]
[1772116303919,16.53482837,87.78,87.736,1.2982965]
[1772116304223,16.53482837,87.78,87.74,16.53482837]
[1772116304422,16.53482837,87.78,87.741,1.2982965]
[1772116304622,318.69245037,87.859,87.761,12.69281152]
[1772116304623,11.38965136,87.799,87.761,12.69281152]
[1772116304844,16.53482837,87.79,87.762,11.39445318]
[1772116305040,16.53482837,87.78,87.745,12.69494809]
[1772116305269,16.53482837,87.78,87.731,1.2982965]
[1772116305443,16.53482837,87.77,87.723,1.2982965]
[1772116305644,16.53482837,87.75,87.709,1.2982965]
[1772116305845,16.53482837,87.76,87.721,1.2982965]
[1772116306029,16.53482837,87.75,87.721,1.2982965]
[1772116306227,16.53482837,87.76,87.721,1.2982965]
[1772116306537,16.53482837,87.75,87.721,1.2982965]
[1772116307128,11.39614126,87.749,87.712,1.2982965]
[1772116307326,16.53482837,87.77,87.731,1.2982965]
[1772116307521,16.53482837,87.79,87.75,16.53482837]
[1772116308448,16.53482837,87.79,87.751,1.2982965]
[1772116309140,16.53482837,87.79,87.752,11.39575166]
[1772116309338,50.90701721,87.823,87.752,11.39575166]
[1772116309339,125.96377131,88.061,87.761,1.2982965]
[1772116309540,16.53482837,87.81,87.77,16.53482837]
[1772116309737,16.53482837,87.83,87.791,1.2982965]
[1772116309935,16.53482837,87.84,87.8,16.53482837]
[1772116310320,16.53482837,87.83,87.781,1.2982965]
[1772116310521,16.53482837,87.82,87.781,1.2982965]
[1772116310727,16.53482837,87.82,87.771,1.2982965]
[1772116310926,16.53482837,87.82,87.78,16.53482837]
[1772116311145,16.53482837,87.83,87.79,16.53482837]
[1772116311355,11.38512266,87.834,87.791,1.2982965]
[1772116311647,16.53482837,87.84,87.781,39.87195406]
[1772116311648,11.38447028,87.839,87.801,1.2982965]
[1772116312043,1.31099463,87.861,87.801,1.2982965]
[1772116312044,11.38343919,87.847,87.81,16.53482837]
[1772116312248,16.53482837,87.85,87.81,17.83312487]
[1772116312543,16.53482837,87.85,87.811,1.2982965]
[1772116312767,1.31099463,87.839,87.781,11.39198687]
[1772116312939,16.53482837,87.82,87.781,1.2982965]
[1772116313137,1.31099463,87.809,87.761,1.2982965]
[1772116313327,16.53482837,87.8,87.761,1.2982965]
[1772116313727,16.53482837,87.79,87.761,1.2982965]
[1772116313927,16.53482837,87.78,87.747,1.2982965]
[1772116314129,16.53482837,87.78,87.691,45.6143829]
[1772116314130,16.53482837,87.76,87.724,12.69766719]
[1772116314338,16.53482837,87.77,87.731,1.2982965]
[1772116315235,16.53482837,87.75,87.711,11.40107854]
[1772116315731,16.53482837,87.76,87.711,1.2982965]
[1772116315931,16.53482837,87.76,87.721,1.2982965]
[1772116316142,16.53482837,87.76,87.675,56.01836873]
[1772116316143,16.53482837,87.74,87.7,16.53482837]
[1772116316326,39.87740545,87.769,87.73,16.53482837]
[1772116316327,1.28628388,87.768,87.73,16.53482837]
[1772116316526,11.39354441,87.769,87.73,17.90786255]
[1772116316741,1.28628388,87.759,87.72,16.53482837]
[1772116316959,11.39354441,87.769,87.731,1.37303418]
[1772116317331,11.39354441,87.769,87.732,11.39834951]
[1772116317528,39.87740545,87.769,87.722,1.37303418]
[1772116317733,11.39354441,87.769,87.731,1.37303418]
[1772116318047,1.28628388,87.815,87.761,1.37303418]
[1772116318227,1.28628388,87.835,87.78,16.53482837]
[1772116318426,16.53482837,87.82,87.78,16.53482837]
[1772116318636,1.28628388,87.819,87.77,17.90786255]
[1772116318841,16.53482837,87.81,87.77,17.90786255]
[1772116319244,11.38718713,87.818,87.78,16.53482837]
[1772116319647,11.38718713,87.818,87.76,16.53482837]
[1772116319648,16.53482837,87.8,87.76,16.53482837]
[1772116319847,1.28628388,87.809,87.76,16.53482837]
[1772116320051,16.53482837,87.8,87.76,16.53482837]
[1772116320281,16.53482837,87.8,87.755,11.39536208]
[1772116320282,1.28628388,87.837,87.781,1.37303418]
[1772116320451,1.28628388,87.829,87.79,16.53482837]
[1772116320677,39.84698756,87.836,87.791,1.37303418]
[1772116320678,11.38485359,87.836,87.791,1.37303418]
[1772116320836,11.38431817,87.841,87.81,16.53482837]
[1772116321037,11.38360751,87.846,87.81,16.53482837]
[1772116321270,16.53482837,87.84,87.801,12.76241287]
[1772116321559,16.53482837,87.84,87.786,28.47807803]
[1772116321560,1.28628388,87.839,87.788,1.37303418]
[1772116321858,16.53482837,87.85,87.81,16.53482837]
[1772116322156,1.28628388,87.885,87.831,1.37303418]
[1772116322365,16.53482837,87.87,87.831,1.37303418]
[1772116322562,1.28628388,87.859,87.799,1.37303418]
[1772116322731,16.53482837,87.84,87.8,16.53482837]
[1772116323058,16.53482837,87.84,87.801,1.37303418]
[1772116323353,11.38316884,87.849,87.821,1.37303418]
[1772116323539,16.53482837,87.87,87.83,16.53482837]
[1772116323735,1.28628388,87.859,87.756,45.58057579]
[1772116323952,1.28628388,87.839,87.8,16.53482837]
[1772116324156,16.53482837,87.85,87.81,16.53482837]
[1772116324659,16.53482837,87.84,87.8,16.53482837]
[1772116324870,1.28628388,87.829,87.78,16.53482837]
[1772116325047,16.53482837,87.81,87.77,16.53482837]
[1772116325434,11.38835426,87.809,87.77,16.53482837]
[1772116325755,11.38835426,87.809,87.266,127.595685]
[1772116325756,16.53482837,87.8,87.76,16.53482837]
[1772116325952,1.28628388,87.799,87.752,1.37303418]
[1772116326269,1.28628388,87.799,87.76,16.53482837]
[1772116326560,1.28628388,87.799,87.754,1.37303418]
[1772116326561,11.38774291,87.814,87.78,16.53482837]
[1772116326769,16.53482837,87.81,87.771,1.37303418]
[1772116326933,11.38774291,87.814,87.78,16.53482837]
[1772116327341,39.85470114,87.819,87.781,1.37303418]
[1772116327558,16.53482837,87.84,87.791,1.37303418]
[1772116327782,16.53482837,87.84,87.8,16.53482837]
[1772116327959,1.28628388,87.829,87.79,16.53482837]
[1772116328163,16.53482837,87.84,87.8,17.90786255]
[1772116328350,1.28628388,87.839,87.8,16.53482837]
[1772116328760,16.53482837,87.84,87.801,1.37303418]
[1772116329441,1.28628388,87.839,87.8,16.53482837]
[1772116329660,28.45457495,87.86,87.81,16.53482837]
[1772116329862,16.53482837,87.87,87.83,17.90786255]
[1772116330070,12.66556675,87.879,87.831,1.37303418]
[1772116330246,16.53482837,87.87,87.831,1.37303418]
[1772116330442,1.28628388,87.867,87.758,1.51519575]
[1772116330654,17.82111225,87.83,87.79,16.53482837]
[1772116330954,16.53482837,87.83,87.79,16.53482837]
[1772116331145,16.53482837,87.82,87.78,16.53482837]
[1772116331356,16.53482837,87.82,87.78,17.90786255]
[1772116331746,16.53482837,87.83,87.791,1.37303418]
[1772116331946,16.53482837,87.82,87.786,1.37303418]
[1772116332146,1.28628388,87.822,87.771,1.37303418]
[1772116332352,16.53482837,87.81,87.771,1.37303418]
[1772116332560,16.53482837,87.8,87.76,16.53482837]
[1772116333063,16.53482837,87.8,87.712,45.60377707]
[1772116333064,1.28628388,87.799,87.75,16.53482837]
[1772116333242,1.28628388,87.799,87.76,16.53482837]
[1772116333444,1.28628388,87.799,87.711,45.60427005]
[1772116333445,1.28628388,87.779,87.676,45.62203606]
[1772116333662,16.53482837,87.77,87.73,16.53482837]
[1772116333966,17.82111225,87.77,87.732,11.39834951]
[1772116334259,16.53482837,87.78,87.741,1.37303418]
[1772116334444,16.53482837,87.78,87.732,11.39834951]
[1772116334445,46.29515983,87.8,87.76,16.53482837]
[1772116334646,1.28628388,87.779,87.732,39.8942233]
[1772116334847,16.53482837,87.77,87.732,11.39834951]
[1772116335050,1.28628388,87.779,87.732,11.39834951]
[1772116335051,1.28628388,87.821,87.761,1.37303418]
[1772116335300,1.28628388,87.821,87.79,16.53482837]
[1772116335449,12.67314514,87.821,87.79,16.53482837]
[1772116335655,1.28628388,87.819,87.78,16.53482837]
[1772116335868,1.28628388,87.819,87.733,0.28432314]
[1772116335869,1.28628388,87.809,87.77,16.53482837]
[1772116336052,1.28628388,87.799,87.76,16.53482837]
[1772116336363,1.28628388,87.789,87.75,16.53482837]
[1772116336663,16.53482837,87.81,87.77,16.53482837]
[1772116336867,1.28628388,87.799,87.76,16.53482837]
[1772116337165,1.28628388,87.789,87.742,11.39705044]
[1772116337372,16.53482837,87.78,87.741,1.37303418]
[1772116337765,1.28628388,87.789,87.741,1.37303418]
[1772116337961,16.53482837,87.78,87.742,11.39705044]
[1772116338265,1.28628388,87.779,87.74,16.53482837]
[1772116338566,39.86877476,87.788,87.72,16.53482837]
[1772116338567,1.28628388,87.759,87.72,16.53482837]
[1772116339140,16.53482837,87.76,87.721,1.37303418]
[1772116339341,16.53482837,87.78,87.74,17.90786255]
[1772116339566,1.28628388,87.787,87.74,17.90786255]
[1772116339952,16.53482837,87.78,87.741,11.39718033]
[1772116340154,16.53482837,87.77,87.73,27.9333151]
[1772116340353,1.28628388,87.785,87.74,17.90786255]
[1772116340354,16.53482837,87.78,87.74,17.90786255]
[1772116340749,16.53482837,87.78,87.741,1.37303418]
[1772116340955,11.39133802,87.786,87.75,16.53482837]
[1772116341150,1.28628388,87.769,87.692,1.37303418]
[1772116341468,16.52782357,87.77,87.721,1.37303418]
[1772116341670,1.28628388,87.749,87.71,16.52782357]
[1772116341864,16.52782357,87.73,87.692,1.37303418]
[1772116342172,11.39873929,87.729,87.693,11.40341874]
[1772116342348,11.39757003,87.738,87.7,16.52782357]
[1772116342554,11.39614126,87.749,87.701,1.37303418]
[1772116342757,27.92257605,87.76,87.721,1.37303418]
[1772116343073,29.20885993,87.76,87.721,1.37303418]
[1772116343463,1.28628388,87.729,87.69,16.62782357]
[1772116343667,1.28628388,87.729,87.691,11.40367882]
[1772116343861,16.52782357,87.74,87.701,1.37303418]
[1772116344176,11.39744013,87.739,87.701,12.77539318]
[1772116344365,1.28628388,87.729,87.69,0.1]
[1772116344673,45.5841822,87.75,87.69,0.1]
[1772116344674,16.52782357,87.75,87.711,1.37303418]
[1772116344864,11.39614126,87.749,87.711,1.37303418]
[1772116345264,1.28628388,87.719,87.69,0.1]
[1772116345458,16.52782357,87.7,87.667,11.40670079]
[1772116345659,16.52782357,87.7,87.661,41.29950864]
[1772116345955,41.17354791,87.718,87.671,1.37303418]
[1772116346150,16.52782357,87.71,87.671,12.77919683]
[1772116346478,41.17354791,87.718,87.68,16.52782357]
[1772116346660,12.67312611,87.718,87.68,16.52782357]
[1772116346867,1.27295739,87.747,87.71,16.52782357]
[1772116347270,1.27295739,87.739,87.69,16.52782357]
[1772116347466,1.27295739,87.739,87.66,0.1]
[1772116347467,1.27295739,87.719,87.68,16.52782357]
[1772116348068,11.40042865,87.716,87.68,16.52782357]
[1772116348267,11.40042865,87.716,87.69,17.83180378]
[1772116348476,11.39873929,87.729,87.69,1.30398021]
[1772116348673,17.80078096,87.72,87.68,16.52782357]
[1772116348877,17.80078096,87.72,87.674,1.30398021]
[1772116348878,1.27295739,87.719,87.674,1.30398021]
[1772116349178,16.52782357,87.69,87.66,0.1]
[1772116349674,1.27295739,87.699,87.66,16.62782357]
[1772116349980,16.52782357,87.69,87.66,0.1]
[1772116350155,11.40276859,87.698,87.67,16.52782357]
[1772116350362,16.52782357,87.72,87.68,16.52782357]
[1772116350682,1.27295739,87.75,87.711,1.30398021]
[1772116350878,16.52782357,87.76,87.72,16.52782357]
[1772116351080,1.27295739,87.764,87.73,16.52782357]
[1772116351259,11.39237622,87.778,87.74,16.52782357]
[1772116351466,1.27295739,87.777,87.74,16.52782357]
[1772116351765,45.55090688,87.814,87.679,5.36086188]
[1772116351766,16.52782357,87.79,87.75,16.52782357]
[1772116352079,1.27295739,87.779,87.731,1.30398021]
[1772116352271,1.27295739,87.759,87.715,1.30398021]
[1772116352474,1.27295739,87.749,87.71,16.52782357]
[1772116352866,1.27295739,87.749,87.702,1.30398021]
[1772116352867,16.52782357,87.74,87.702,1.30398021]
[1772116353156,1.27295739,87.739,87.701,11.40237853]
[1772116353357,1.27295739,87.739,87.7,16.52782357]
[1772116353582,1.27295739,87.729,87.69,16.52782357]
[1772116354063,39.89604231,87.728,87.69,16.52782357]
[1772116354264,16.52782357,87.72,87.68,16.52782357]
[1772116354464,16.52782357,87.7,87.649,1.30398021]
[1772116354668,16.52782357,87.7,87.661,11.40758147]
[1772116354856,16.52782357,87.72,87.68,17.83180378]
[1772116355061,11.39886923,87.728,87.69,17.83180378]
[1772116355377,11.39886923,87.728,87.7,16.52782357]
[1772116355681,1.27295739,87.727,87.69,16.52782357]
[1772116356779,11.3991291,87.726,87.69,27.9315205]
[1772116357182,1.27295739,87.757,87.697,1.30398021]
[1772116357385,1.27295739,87.739,87.683,1.30398021]
[1772116357582,16.52782357,87.71,87.67,16.52782357]
[1772116357885,1.27295739,87.719,87.671,1.22877353]
[1772116358084,16.52782357,87.73,87.69,16.52782357]
[1772116358286,1.20211789,87.732,87.69,17.7565971]
[1772116358681,28.4905487,87.749,87.71,16.52782357]
[1772116358881,1.20211789,87.796,87.73,16.52782357]
[1772116359088,39.86468785,87.797,87.691,85.52759118]
[1772116359089,1.20211789,87.793,87.75,16.52782357]
[1772116359271,1.20211789,87.793,87.76,9.62552542]
[1772116359466,11.38929854,87.802,87.77,9.62552542]
[1772116359686,10.82764331,87.82,87.78,9.62552542]
[1772116359887,1.20211789,87.818,87.767,1.22877353]
[1772116360086,1.20211789,87.818,87.772,1.22877353]
[1772116360272,9.62552542,87.79,87.75,9.62552542]
[1772116360475,1.20211789,87.789,87.75,9.62552542]
[1772116360672,1.20211789,87.798,87.76,9.62552542]
[1772116360873,1.20211789,87.789,87.75,9.62552542]